bitfinex-derivatives/quotes_BNBF0:USTF0_20250617
["timestamp","ask_amount","ask_price","bid_price","bid_amount"]
[1750145078764,1.13459764,657.45,657.06,1.331]
[1750145079064,1.13459764,657.42,657.06,1.331]
[1750145079468,1.13585762,657.42,657.06,1.331]
[1750145081169,1.13585762,657.36,657.06,1.331]
[1750145081369,1.13585762,657.37,657.06,1.331]
[1750145081970,1.13585762,657.36,657.06,1.331]
[1750145084470,1.13585762,657.35,657.06,1.331]
[1750145085271,1.13585762,657.36,657.06,1.331]
[1750145085871,1.13585762,657.36,657.07,1.405]
[1750145086872,1.13585762,657.37,657.07,1.405]
[1750145087071,1.13585762,657.32,657.07,1.405]
[1750145087276,1.13585762,657.33,657.07,1.405]
[1750145087877,1.13585762,657.32,657.07,1.405]
[1750145088779,1.13585762,657.31,657.07,1.405]
[1750145091784,1.13585762,657.3,657.07,1.405]
[1750145092280,1.13585762,657.29,657.07,1.405]
[1750145093485,1.13585762,657.28,657.07,1.405]
[1750145094987,1.13585762,657.29,657.07,1.405]
[1750145096087,1.13585762,657.28,657.07,1.405]
[1750145096889,1.13585762,657.26,657.07,1.405]
[1750145097490,1.13585762,657.25,657.07,1.405]
[1750145098087,1.13585762,657.26,657.07,1.405]
[1750145098489,1.13585762,657.25,657.07,1.405]
[1750145099695,1.13585762,657.23,657.07,1.405]
[1750145100396,1.13585762,657.22,657.07,1.405]
[1750145100895,1.13585762,657.23,657.07,1.405]
[1750145101093,1.13585762,657.22,657.07,1.405]
[1750145101492,1.13585762,657.2,657.07,1.405]
[1750145101697,1.13585762,657.17,657.07,1.405]
[1750145102500,1.13585762,657.16,657.07,1.405]
[1750145103003,1.51318491,657.24,657.07,1.405]
[1750145103297,1.51318491,657.27,657.07,1.405]
[1750145103499,0.46022025,657.26,657.07,1.405]
[1750145103898,0.46022025,657.26,657.08,0.967]
[1750145104197,1.51318491,657.27,657.08,0.967]
[1750145104403,1.13531657,657.09,657.08,0.967]
[1750145105004,1.97318425,657.27,657.08,0.967]
[1750145105303,1.13484137,657.09,657.08,0.967]
[1750145106403,1.13484137,657.1,657.08,0.967]
[1750145107404,1.13484137,657.11,657.08,0.967]
[1750145107601,1.13484137,657.1,657.08,0.967]
[1750145108206,1.13484137,657.11,657.08,0.967]
[1750145108905,1.13484137,657.1,657.08,0.967]
[1750145109305,1.13484137,657.11,657.08,0.967]
[1750145109502,1.13484137,657.12,657.08,0.967]
[1750145111110,1.13484137,657.13,657.08,0.967]
[1750145111406,1.13484137,657.14,657.08,0.967]
[1750145112006,1.13484137,657.12,657.08,0.967]
[1750145112508,1.13484137,657.13,657.08,0.967]
[1750145112809,1.13484137,657.12,657.08,0.967]
[1750145113508,1.13484137,657.09,657.08,0.967]
[1750145113708,1.51318491,657.21,657.08,0.967]
[1750145113905,1.51318491,657.2,657.08,0.967]
[1750145114309,1.97072998,657.21,657.08,0.967]
[1750145114507,1.51318491,657.18,657.08,0.967]
[1750145114710,1.97072998,657.19,657.08,0.967]
[1750145114910,0.45754507,657.18,657.08,0.967]
[1750145115107,1.51318491,657.18,657.08,0.967]
[1750145115411,1.51318491,657.2,657.08,0.967]
[1750145115912,1.51318491,657.19,657.08,0.967]
[1750145116313,1.13125894,657.09,657.08,0.967]
[1750145116613,1.13125894,657.12,657.08,0.967]
[1750145117109,1.13125894,657.1,657.08,0.967]
[1750145117608,1.13125894,657.11,657.08,0.967]
[1750145118713,1.13125894,657.12,657.08,0.967]
[1750145118913,1.13125894,657.11,657.08,0.967]
[1750145119315,1.13125894,657.12,657.08,0.967]
[1750145122813,1.13125894,657.13,657.08,0.967]
[1750145123012,1.13125894,657.14,657.08,0.967]
[1750145123719,1.13125894,657.12,657.08,0.967]
[1750145124718,1.13125894,657.09,657.08,0.967]
[1750145125521,1.13125894,657.1,657.08,0.967]
[1750145125722,1.13125894,657.14,657.08,0.967]
[1750145127321,1.13125894,657.11,657.08,0.967]
[1750145128220,1.13125894,657.1,657.08,0.967]
[1750145129920,1.13125894,657.09,657.08,0.967]
[1750145131119,1.13125894,657.1,657.08,0.967]
[1750145131619,1.13125894,657.09,657.08,0.967]
[1750145131824,1.51318491,657.18,657.08,0.967]
[1750145132020,1.51318491,657.17,657.08,0.967]
[1750145132219,1.81751553,657.18,657.08,0.967]
[1750145132421,0.30433062,657.18,657.08,0.967]
[1750145138028,1.51318491,657.17,657.08,0.967]
[1750145138228,0.30433988,657.16,657.08,0.967]
[1750145138428,1.50449366,657.13,657.08,0.967]
[1750145138629,1.50449366,657.12,657.08,0.967]
[1750145139132,1.50449366,657.13,657.08,0.967]
[1750145139633,1.50449366,657.12,657.08,0.967]
[1750145143032,1.50449366,657.11,657.08,0.967]
[1750145143236,1.80883354,657.16,657.08,0.967]
[1750145143636,1.50449366,657.15,657.08,0.967]
[1750145144932,0.45588966,657.15,657.08,0.967]
[1750145145137,0.30433988,657.16,657.08,0.967]
[1750145148333,1.50449366,657.15,657.08,0.967]
[1750145148637,1.50449366,657.13,657.08,0.967]
[1750145148836,0.30435841,657.12,657.08,0.967]
[1750145149039,1.50449366,657.1,657.08,0.967]
[1750145149239,0.3043723,657.09,657.08,0.967]
[1750145149535,1.80886596,657.09,657.08,0.967]
[1750145150239,0.3043723,657.09,657.08,0.967]
[1750145151137,0.3043723,657.09,657.01,0.881]
[1750145151641,1.81034927,657.09,657.01,0.881]
[1750145151837,0.3043723,657.09,657.01,0.881]
[1750145152041,1.50597697,657.07,657.01,0.881]
[1750145152337,1.50597697,657.06,657.01,0.881]
[1750145152642,1.50597697,657.03,657.01,0.881]
[1750145152840,1.50597697,657.04,657.01,0.881]
[1750145153337,1.50597697,657.05,657.01,0.881]
[1750145153839,0.30439547,657.04,657.01,0.881]
[1750145154437,1.81037244,657.04,657.01,0.881]
[1750145154842,0.30439547,657.04,657.01,0.881]
[1750145161441,2.26770078,657.02,657.01,0.881]
[1750145161646,2.57210551,657.02,657.01,0.881]
[1750145161843,0.30440473,657.02,657.01,0.881]
[1750145162043,2.57210551,657.02,657.01,0.881]
[1750145162246,0.30440473,657.02,657.01,0.881]
[1750145162746,2.5654121,657.02,657.01,0.881]
[1750145162944,0.30440473,657.02,657.01,0.881]
[1750145167952,2.56117379,657.02,656.85,1.063]
[1750145168648,0.30440473,657.02,656.85,1.063]
[1750145168848,2.25676906,656.99,656.85,1.063]
[1750145169153,0.30442327,656.98,656.85,1.063]
[1750145170953,0.26502271,656.95,656.85,1.063]
[1750145171249,0.3044418,656.94,656.85,1.063]
[1750145172650,1.50299579,656.87,656.85,1.063]
[1750145172854,0.30447888,656.86,656.85,1.063]
[1750145180556,0.30447888,656.86,656.57,2.539]
[1750145180855,1.12585582,656.59,656.57,2.539]
[1750145181059,0.30460873,656.58,656.57,2.539]
[1750145185759,1.43046455,656.58,656.57,2.539]
[1750145185963,0.30460873,656.58,656.57,2.539]
[1750145187260,0.30460873,656.58,656.57,1.23]
[1750145189263,1.43061487,656.58,656.57,1.23]
[1750145190565,0.30460873,656.58,656.57,1.23]
[1750145193168,1.43061487,656.58,656.57,1.23]
[1750145193367,0.30460873,656.58,656.57,1.23]
[1750145194269,1.43061487,656.58,656.57,1.23]
[1750145194472,0.30460873,656.58,656.57,1.23]
[1750145195369,1.4307876,656.58,656.57,1.23]
[1750145195572,0.30460873,656.58,656.57,1.23]
[1750145195968,0.30460873,656.58,656.43,1.201]
[1750145199177,1.4307876,656.58,656.43,1.201]
[1750145199375,1.12617887,656.57,656.43,1.201]
[1750145200474,1.12617887,656.56,656.43,1.201]
[1750145200678,1.12617887,656.55,656.43,1.201]
[1750145201277,1.12617887,656.54,656.43,1.201]
[1750145201477,1.12617887,656.53,656.43,1.201]
[1750145201975,1.12617887,656.51,656.43,1.201]
[1750145202677,1.12617887,656.5,656.43,1.201]
[1750145203278,1.12617887,656.49,656.43,1.201]
[1750145203676,1.12617887,656.55,656.43,1.201]
[1750145203879,1.4307876,656.58,656.43,1.201]
[1750145204279,1.12617887,656.57,656.43,1.201]
[1750145204476,1.4307876,656.58,656.43,1.201]
[1750145204677,0.30460873,656.58,656.43,1.201]
[1750145206182,1.4307876,656.58,656.43,1.201]
[1750145206377,0.30460873,656.58,656.43,1.201]
[1750145206577,1.4307876,656.58,656.43,1.201]
[1750145206977,0.30460873,656.58,656.43,1.201]
[1750145208583,1.4307876,656.58,656.43,1.201]
[1750145209183,0.30460873,656.58,656.43,1.201]
[1750145209386,1.12617887,656.57,656.43,1.201]
[1750145209581,1.12617887,656.56,656.43,1.201]
[1750145209783,1.12617887,656.57,656.43,1.201]
[1750145210386,1.12617887,656.56,656.43,1.201]
[1750145211284,1.12617887,656.55,656.43,1.201]
[1750145212286,1.12617887,656.54,656.43,1.201]
[1750145213281,1.12617887,656.53,656.43,1.201]
[1750145213883,0.30460873,656.58,656.43,1.201]
[1750145213884,1.12617887,656.52,656.43,1.201]
[1750145214383,1.12617887,656.51,656.43,1.201]
[1750145214686,1.12617887,656.49,656.43,1.201]
[1750145215382,1.13200827,656.49,656.43,1.201]
[1750145215583,1.13200827,656.48,656.43,1.201]
[1750145216883,1.13200827,656.47,656.43,1.201]
[1750145217089,1.13200827,656.48,656.43,1.201]
[1750145217286,1.13200827,656.47,656.43,1.201]
[1750145218291,1.13200827,656.46,656.43,1.201]
[1750145219191,1.13200827,656.52,656.43,1.201]
[1750145220093,1.13200827,656.53,656.43,1.201]
[1750145220292,1.13200827,656.52,656.43,1.201]
[1750145220488,1.13200827,656.54,656.43,1.201]
[1750145221090,1.13200827,656.53,656.43,1.201]
[1750145222694,1.13200827,656.54,656.43,1.201]
[1750145222993,1.13200827,656.53,656.43,1.201]
[1750145224595,1.13200827,656.54,656.43,1.201]
[1750145225197,0.30460873,656.58,656.43,1.201]
[1750145225891,1.13200827,656.68,656.43,1.201]
[1750145226093,1.13200827,656.69,656.43,1.201]
[1750145226291,1.13200827,656.68,656.43,1.201]
[1750145226596,1.13200827,656.69,656.43,1.201]
[1750145226797,1.13200827,656.68,656.43,1.201]
[1750145227498,1.13200827,656.69,656.43,1.201]
[1750145228697,1.13200827,656.7,656.43,1.201]
[1750145229199,1.13200827,656.69,656.43,1.201]
[1750145229698,1.13200827,656.7,656.43,1.201]
[1750145230395,1.13200827,656.71,656.43,1.201]
[1750145232594,1.13200827,656.72,656.43,1.201]
[1750145233495,1.13200827,656.71,656.43,1.201]
[1750145234597,1.13200827,656.72,656.43,1.201]
[1750145234896,5.29515147,658.22,656.43,1.201]
[1750145234897,1.13200827,656.71,656.43,1.201]
[1750145235200,1.13200827,656.69,656.43,1.201]
[1750145236795,1.13200827,656.69,656.19,1.561]
[1750145236996,1.13200827,656.7,656.19,1.561]
[1750145238201,1.13200827,656.71,656.19,1.561]
[1750145239304,1.13200827,656.71,656.2,1.06]
[1750145239502,1.13200827,656.71,656.2,2.213]
[1750145242503,1.13200827,656.72,656.2,2.213]
[1750145243509,1.13200827,656.71,656.2,2.213]
[1750145244212,1.13200827,656.7,656.2,2.213]
[1750145246812,1.13200827,656.69,656.2,2.213]
[1750145248212,1.13200827,656.68,656.2,2.213]
[1750145248513,1.13200827,656.67,656.2,2.213]
[1750145249114,1.13200827,656.69,656.2,2.213]
[1750145249515,1.13200827,656.68,656.21,0.879]
[1750145249715,1.13200827,656.68,656.21,1.941]
[1750145250616,1.13200827,656.67,656.21,1.941]
[1750145250817,1.13200827,656.58,656.21,1.941]
[1750145251112,1.13200827,656.57,656.21,1.941]
[1750145251612,1.13200827,656.55,656.21,1.941]
[1750145252213,1.13200827,656.54,656.21,1.941]
[1750145252912,1.13200827,656.47,656.21,1.941]
[1750145253117,1.13200827,656.45,656.21,1.941]
[1750145253714,1.13200827,656.44,656.21,1.941]
[1750145255212,1.13200827,656.45,656.21,1.941]
[1750145255512,1.13200827,656.44,656.21,1.941]
[1750145256417,1.13200827,656.43,656.21,1.941]
[1750145258212,1.13200827,656.41,656.21,1.941]
[1750145258413,1.13200827,656.39,656.21,1.941]
[1750145259216,1.13200827,656.37,656.21,1.941]
[1750145259410,1.13200827,656.38,656.21,1.941]
[1750145260316,1.13200827,656.37,656.21,1.941]
[1750145260518,1.13200827,656.38,656.21,1.941]
[1750145261215,1.13200827,656.37,656.21,1.941]
[1750145264922,1.50114109,656.53,656.21,1.941]
[1750145265121,1.1324499,656.37,656.21,1.941]
[1750145265521,1.1324499,656.38,656.21,1.941]
[1750145266021,1.1324499,656.37,656.21,1.941]
[1750145266422,1.1324499,656.38,656.21,1.941]
[1750145266719,1.1324499,656.38,656.21,0.879]
[1750145267518,1.1324499,656.39,656.21,0.879]
[1750145270723,1.1324499,656.4,656.21,0.879]
[1750145272221,1.1324499,656.41,656.21,0.879]
[1750145274426,1.1324499,656.4,656.21,0.879]
[1750145274621,1.1324499,656.41,656.21,0.879]
[1750145274821,1.1324499,656.45,656.21,0.879]
[1750145275024,1.1324499,656.46,656.21,0.879]
[1750145275822,1.1324499,656.47,656.21,0.879]
[1750145278421,1.1324499,656.48,656.21,0.879]
[1750145281528,1.1324499,656.47,656.21,0.879]
[1750145282625,1.1324499,656.5,656.21,0.879]
[1750145283027,1.1324499,656.5,656.22,0.928]
[1750145283431,1.1324499,656.51,656.22,0.928]
[1750145284032,1.1324499,656.5,656.22,0.928]
[1750145284630,1.1324499,656.49,656.22,0.928]
[1750145287529,1.1324499,656.56,656.22,0.928]
[1750145288333,1.1324499,656.57,656.22,0.928]
[1750145288535,1.1324499,656.57,656.23,1.14]
[1750145289333,1.1324499,656.56,656.23,1.14]
[1750145291036,1.1324499,656.56,656.24,1.422]
[1750145292435,1.1324499,656.54,656.24,1.422]
[1750145294535,1.1324499,656.53,656.24,1.422]
[1750145295136,1.1324499,656.54,656.24,1.422]
[1750145295633,1.1324499,656.53,656.24,1.422]
[1750145296036,1.1324499,656.52,656.24,1.422]
[1750145297331,1.1324499,656.47,656.24,1.422]
[1750145297833,1.1324499,656.5,656.24,1.422]
[1750145299536,1.1324499,656.49,656.24,1.422]
[1750145300838,1.1324499,656.48,656.24,1.422]
[1750145302334,1.1324499,656.47,656.24,1.422]
[1750145302732,1.1324499,656.49,656.24,1.422]
[1750145303539,1.1324499,656.48,656.24,1.422]
[1750145303738,1.1324499,656.49,656.24,1.422]
[1750145304537,1.1324499,656.48,656.24,1.422]
[1750145304839,1.1324499,656.47,656.24,1.422]
[1750145305639,1.1324499,656.46,656.24,1.422]
[1750145305843,1.1324499,656.45,656.24,1.422]
[1750145306343,1.1324499,656.37,656.24,1.422]
[1750145306539,1.1324499,656.36,656.24,1.422]
[1750145307040,1.1324499,656.37,656.24,1.422]
[1750145307241,1.1324499,656.36,656.24,1.422]
[1750145307642,1.1324499,656.35,656.24,1.422]
[1750145308439,1.1324499,656.34,656.24,1.422]
[1750145308944,1.1324499,656.35,656.24,1.422]
[1750145309639,1.1324499,656.34,656.24,1.422]
[1750145310544,1.1324499,656.32,656.24,1.422]
[1750145311345,1.1324499,656.31,656.24,1.422]
[1750145313642,2.25676906,656.65,656.24,1.422]
[1750145313846,0.30458089,656.64,656.24,1.422]
[1750145320847,0.30458089,656.64,656.23,1.14]
[1750145322553,0.30458089,656.64,656.22,0.928]
[1750145324551,0.30458089,656.64,656.23,1.302]
[1750145324754,0.30458089,656.64,656.23,2.538]
[1750145329753,0.30458089,656.64,656.24,1.291]
[1750145334858,0.30458089,656.64,656.25,1.339]
[1750145338062,1.51328719,656.52,656.25,1.339]
[1750145338362,1.13496539,656.35,656.25,1.339]
[1750145338659,1.13496539,656.33,656.25,1.339]
[1750145338862,1.13496539,656.34,656.25,1.339]
[1750145340160,1.13496539,656.32,656.25,1.339]
[1750145340463,1.13496539,656.31,656.25,1.339]
[1750145341464,1.13496539,656.3,656.25,1.339]
[1750145342060,1.13496539,656.29,656.25,1.339]
[1750145342563,1.13496539,656.28,656.25,1.339]
[1750145342861,1.13496539,656.29,656.25,1.339]
[1750145343564,1.13496539,656.28,656.25,1.339]
[1750145344866,1.13496539,656.27,656.25,1.339]
[1750145345669,1.13496539,656.28,656.25,1.339]
[1750145345864,1.13496539,656.29,656.25,1.339]
[1750145347769,1.13496539,656.28,656.25,1.339]
[1750145348670,1.13496539,656.29,656.25,1.339]
[1750145350269,1.13496539,656.28,656.25,1.339]
[1750145351471,1.13496539,656.29,656.25,1.339]
[1750145352671,1.13496539,656.26,656.25,1.339]
[1750145352876,1.51328719,656.41,656.25,1.339]
[1750145353676,1.51328719,656.42,656.25,1.339]
[1750145354373,1.51328719,656.41,656.25,1.339]
[1750145355575,1.51328719,656.4,656.25,1.339]
[1750145356478,1.51328719,656.39,656.25,1.339]
[1750145356677,0.30458089,656.64,656.25,1.339]
[1750145356678,1.51328719,656.4,656.25,1.339]
[1750145356879,1.51328719,656.4,656.23,1.302]
[1750145357174,1.13547457,656.24,656.23,1.302]
[1750145357679,1.13547457,656.24,655.95,1.143]
[1750145358179,1.13547457,656.23,655.95,1.143]
[1750145358881,1.13547457,656.26,655.95,1.143]
[1750145359780,1.13547457,656.26,655.96,1.116]
[1750145360477,1.13547457,656.26,655.97,1.029]
[1750145360681,1.13547457,656.26,655.97,2.432]
[1750145361278,1.13547457,656.25,655.97,2.432]
[1750145362377,1.13547457,656.24,655.97,2.432]
[1750145362882,1.13547457,656.25,655.97,2.432]
[1750145363377,1.13547457,656.23,655.97,2.432]
[1750145363878,1.13547457,656.22,655.97,2.432]
[1750145365583,1.13547457,656.21,655.97,2.432]
[1750145365882,1.13547457,656.22,655.97,2.432]
[1750145366886,1.13547457,656.23,655.97,2.432]
[1750145370486,1.13547457,656.22,655.97,2.432]
[1750145372287,1.13547457,656.22,655.97,1.403]
[1750145373994,1.13547457,656.22,655.98,1.271]
[1750145375088,1.13547457,656.24,655.98,1.271]
[1750145375594,1.13547457,656.25,655.98,1.271]
[1750145375789,1.13547457,656.3,655.98,1.271]
[1750145375992,1.13547457,656.31,655.98,1.271]
[1750145376795,1.13547457,656.32,655.98,1.271]
[1750145379699,1.13547457,656.32,655.99,0.885]
[1750145380796,1.13547457,656.31,655.99,0.885]
[1750145382297,1.13547457,656.3,655.99,0.885]
[1750145382497,1.13547457,656.29,655.99,0.885]
[1750145382697,1.13547457,656.15,655.99,0.885]
[1750145382901,1.13547457,656.16,655.99,0.885]
[1750145383200,1.13547457,656.17,655.99,0.885]
[1750145383496,1.13547457,656.18,655.99,0.885]
[1750145383698,1.13547457,656.19,655.99,0.885]
[1750145386098,1.13547457,656.18,655.99,0.885]
[1750145386498,1.13547457,656.19,655.99,0.885]
[1750145386901,1.13547457,656.18,655.99,0.885]
[1750145387905,1.13547457,656.13,655.99,0.885]
[1750145388198,1.13547457,656.14,655.99,0.885]
[1750145388903,1.13547457,656.13,655.99,0.885]
[1750145391600,1.13547457,656.14,655.99,0.885]
[1750145393005,1.13547457,656.13,655.99,0.885]
[1750145393504,1.13547457,656.14,655.99,0.885]
[1750145394207,1.13547457,656.15,655.99,0.885]
[1750145394504,1.13547457,656.13,655.99,0.885]
[1750145394706,1.13547457,656.12,655.99,0.885]
[1750145396706,1.13547457,656.13,655.99,0.885]
[1750145397008,1.13547457,656.16,655.99,0.885]
[1750145398106,1.13547457,656.14,655.99,0.885]
[1750145398610,1.13547457,656.15,655.99,0.885]
[1750145399310,1.13547457,656.16,655.99,0.885]
[1750145401409,1.13547457,656.17,655.99,0.885]
[1750145401609,1.13547457,656.16,655.99,0.885]
[1750145401908,1.13547457,656.17,655.99,0.885]
[1750145404810,1.13547457,656.18,655.99,0.885]
[1750145405213,1.13547457,656.2,655.99,0.885]
[1750145405410,0.26517922,656.56,655.99,0.885]
[1750145405411,1.13547457,656.22,655.99,0.885]
[1750145406718,1.13547457,656.23,655.99,0.885]
[1750145406913,1.13547457,656.24,655.99,0.885]
[1750145407117,1.13547457,656.26,655.99,0.885]
[1750145407313,1.13547457,656.27,655.99,0.885]
[1750145408921,1.13547457,656.26,655.98,1.271]
[1750145410419,1.13547457,656.24,655.98,1.271]
[1750145410620,1.13547457,656.25,655.98,1.271]
[1750145411018,1.13547457,656.24,655.98,1.271]
[1750145412024,1.13547457,656.24,655.97,1.403]
[1750145414627,1.13547457,656.25,655.97,1.403]
[1750145415927,1.13547457,656.27,655.97,1.403]
[1750145419332,1.13547457,656.38,655.97,1.403]
[1750145419531,1.13547457,656.4,655.97,1.403]
[1750145419728,1.13547457,656.4,655.88,0.972]
[1750145419933,1.13547457,656.4,655.61,1.1399909]
[1750145420229,1.13547457,656.41,655.61,1.1399909]
[1750145420430,1.13547457,656.4,655.62,1.1399909]
[1750145420629,1.13547457,656.4,655.61,1.1399909]
[1750145421435,1.13547457,656.4,655.38,1.323]
[1750145421436,1.13547457,656.41,655.62,1.1399909]
[1750145421729,1.13547457,656.4,655.61,1.1399909]
[1750145423535,1.13547457,656.39,655.63,1.1399909]
[1750145423932,1.13547457,656.37,655.66,1.1399909]
[1750145424137,1.13547457,656.31,655.75,1.1399909]
[1750145424831,1.13547457,656.32,655.75,1.1399909]
[1750145425131,1.13547457,656.33,655.73,1.1399909]
[1750145425435,1.13547457,656.34,655.72,1.1399909]
[1750145425636,1.51328719,656.47,655.72,1.1399909]
[1750145425637,1.13547457,656.33,655.72,1.1399909]
[1750145425831,1.13547457,656.33,655.73,1.1399909]
[1750145426235,1.13547457,656.31,655.75,1.1399909]
[1750145426433,1.13547457,656.32,655.75,1.1399909]
[1750145426933,1.13547457,656.34,655.71,1.1399909]
[1750145427335,1.13547457,656.35,655.7,1.1399909]
[1750145427538,1.13547457,656.36,655.68,1.1399909]
[1750145428037,1.13547457,656.37,655.68,1.1399909]
[1750145429139,1.13547457,656.38,655.66,1.1399909]
[1750145429836,1.13547457,656.39,655.66,1.1399909]
[1750145430240,1.13547457,656.38,655.66,1.1399909]
[1750145430540,1.13547457,656.39,655.66,1.1399909]
[1750145430735,1.13547457,656.38,655.66,1.1399909]
[1750145431140,1.13547457,656.4,655.65,1.1399909]
[1750145431539,0.26517922,656.56,655.65,1.1399909]
[1750145431540,1.13547457,656.39,655.65,1.1399909]
[1750145431741,1.13547457,656.4,655.65,1.1399909]
[1750145431941,1.13547457,656.4,655.64,1.1399909]
[1750145437446,0.26517922,656.56,655.62,1.139]
[1750145437447,1.13547457,656.39,655.65,1.1399909]
[1750145438846,1.13547457,656.39,655.66,1.1399909]
[1750145439045,1.13547457,656.39,655.62,1.139]
[1750145439046,1.13547457,656.39,655.67,1.1399909]
[1750145439748,1.13547457,656.37,655.69,1.1399909]
[1750145440643,1.13547457,656.38,655.69,1.1399909]
[1750145441147,1.13547457,656.36,655.72,1.1399909]
[1750145442144,1.13547457,656.35,655.72,1.1399909]
[1750145442544,1.13547457,656.36,655.72,1.1399909]
[1750145443445,1.13547457,656.35,655.72,1.1399909]
[1750145443650,1.13547457,656.35,655.73,1.1399909]
[1750145445848,1.13547457,656.37,655.7,1.1399909]
[1750145446352,1.13547457,656.37,655.71,1.1399909]
[1750145446649,1.13547457,656.36,655.71,1.1399909]
[1750145446947,1.13547457,656.36,655.7,1.1399909]
[1750145447352,0.26517922,656.56,655.7,1.1399909]
[1750145447353,1.13547457,656.37,655.7,1.1399909]
[1750145449849,0.26517922,656.56,655.68,1.1399909]
[1750145449850,1.13547457,656.39,655.68,1.1399909]
[1750145450353,1.13547457,656.39,655.69,0.975]
[1750145450852,1.13547457,656.38,655.69,0.975]
[1750145451053,1.13547457,656.39,655.69,0.975]
[1750145451250,1.13547457,656.4,655.7,1.278]
[1750145451454,1.13547457,656.39,655.7,1.278]
[1750145451657,1.13547457,656.4,655.7,1.278]
[1750145451959,1.13547457,656.4,655.71,1.389]
[1750145452659,1.13547457,656.39,655.71,1.389]
[1750145454557,1.13547457,656.38,655.71,1.389]
[1750145455060,1.13547457,656.41,655.71,1.389]
[1750145455657,1.13547457,656.4,655.71,1.389]
[1750145459365,1.13547457,656.44,655.71,1.389]
[1750145459566,1.13547457,656.43,655.71,1.389]
[1750145460365,1.13547457,656.42,655.71,1.389]
[1750145461668,1.13547457,656.41,655.71,1.389]
[1750145462166,1.13547457,656.4,655.71,1.389]
[1750145463570,1.13547457,656.39,655.71,1.389]
[1750145464373,1.13547457,656.38,655.71,1.389]
[1750145464973,1.13547457,656.37,655.71,1.389]
[1750145465473,1.13547457,656.36,655.71,1.389]
[1750145466370,1.13547457,656.38,655.71,1.389]
[1750145466574,1.13547457,656.36,655.71,1.389]
[1750145466869,1.13547457,656.42,655.74,1.1399909]
[1750145467074,1.13547457,656.43,655.75,1.1399909]
[1750145467473,1.13547457,656.43,655.74,1.1399909]
[1750145467670,0.26517922,656.56,655.71,1.389]
[1750145467671,1.13547457,656.42,655.75,1.1399909]
[1750145467874,1.13547457,656.43,655.75,1.1399909]
[1750145468371,1.13547457,656.44,655.77,1.1399909]
[1750145468571,1.13547457,656.45,655.77,1.1399909]
[1750145468974,1.13547457,656.45,655.78,1.055]
[1750145469271,1.13547457,656.43,655.82,1.1399909]
[1750145469475,1.13547457,656.44,655.82,1.1399909]
[1750145469971,1.13547457,656.44,655.83,1.38]
[1750145470571,1.13547457,656.44,655.84,1.239]
[1750145471775,1.13547457,656.43,655.84,2.3789909]
[1750145472271,1.13547457,656.43,655.85,1.1399909]
[1750145472573,1.13547457,656.48,655.88,1.1399909]
[1750145472775,1.13547457,656.49,655.88,1.1399909]
[1750145473773,1.13547457,656.5,655.88,1.1399909]
[1750145474276,1.13547457,656.5,655.92,1.1399909]
[1750145474477,1.13547457,656.55,655.94,1.1399909]
[1750145475072,1.13547457,656.55,655.84,1.239]
[1750145475073,1.13547457,656.55,655.95,1.1399909]
[1750145475477,1.13547457,656.56,655.94,1.1399909]
[1750145475677,1.13547457,656.58,655.96,1.1399909]
[1750145476078,1.13547457,656.57,655.96,1.1399909]
[1750145476574,1.13547457,656.57,655.95,1.1399909]
[1750145477079,1.13547457,656.58,655.96,1.1399909]
[1750145477280,1.13547457,656.58,655.97,1.1399909]
[1750145477479,1.13547457,656.58,655.95,1.1399909]
[1750145477680,1.13547457,656.57,655.93,1.1399909]
[1750145477880,1.13547457,656.58,655.94,1.1399909]
[1750145478381,1.13547457,656.57,655.96,1.1399909]
[1750145478577,1.13547457,656.59,655.96,1.1399909]